bitfinex/quotes_BTCUSD_20250705
["timestamp","ask_amount","ask_price","bid_price","bid_amount"]
[1751683185917,0.32603636,108090.0,108080.0,1.17618161]
[1751683186126,0.33528731,108090.0,108080.0,1.17618161]
[1751683186354,0.34453843,108090.0,108080.0,1.17618161]
[1751683186560,0.33528731,108090.0,108080.0,1.17618161]
[1751683186791,0.34453843,108090.0,108080.0,1.17618161]
[1751683186998,0.0056795,108090.0,108080.0,1.82603054]
[1751683187202,0.0056795,108090.0,108080.0,1.85733054]
[1751683187411,0.0056795,108090.0,108080.0,1.85433054]
[1751683187826,0.0056795,108090.0,108080.0,1.85533054]
[1751683188259,0.0056795,108090.0,108080.0,1.76389361]
[1751683188438,0.0056795,108090.0,108080.0,1.48518761]
[1751683188847,0.0056795,108090.0,108080.0,1.48218761]
[1751683189395,0.0056795,108090.0,108080.0,1.48818761]
[1751683189976,0.0056795,108090.0,108080.0,1.57501697]
[1751683196606,0.0056795,108090.0,108080.0,1.59141697]
[1751683197840,0.0056795,108090.0,108080.0,1.6828539]
[1751683197984,0.0056795,108090.0,108080.0,1.6993539]
[1751683199192,0.0056795,108090.0,108080.0,1.60791697]
[1751683211866,0.0056795,108090.0,108080.0,1.76993819]
[1751683217398,0.0056795,108090.0,108080.0,1.78447904]
[1751683230018,0.0056795,108090.0,108080.0,1.03530246]
[1751683230224,0.0056795,108090.0,108080.0,1.50397075]
[1751683231445,0.0056795,108090.0,108080.0,1.51740569]
[1751683232430,0.0056795,108090.0,108080.0,1.48450569]
[1751683232634,0.0056795,108090.0,108080.0,1.47107075]
[1751683233364,0.0056795,108090.0,108080.0,1.48617075]
[1751683233648,0.0056795,108090.0,108080.0,1.76659904]
[1751683238006,0.0056795,108090.0,108080.0,1.75149904]
[1751683239866,0.0056795,108090.0,108080.0,1.76699904]
[1751683243505,0.0056795,108090.0,108080.0,1.85843597]
[1751683244857,0.0056795,108090.0,108080.0,1.76699904]
[1751683261937,0.0056795,108090.0,108080.0,1.75149904]
[1751683262484,0.0056795,108090.0,108080.0,1.76699904]
[1751683263725,0.0056795,108090.0,108080.0,1.00240246]
[1751683263927,0.0056795,108090.0,108080.0,1.73683819]
[1751683265088,0.0056105,108090.0,108080.0,1.73683819]
[1751683265418,0.0056105,108090.0,108080.0,1.77975344]
[1751683268660,0.0056105,108090.0,108080.0,1.73683819]
[1751683271065,0.0056105,108090.0,108080.0,1.76863819]
[1751683307098,0.0056105,108090.0,108080.0,1.20778161]
[1751683307322,0.0056105,108090.0,108080.0,1.76863819]
[1751683310132,0.0056105,108090.0,108080.0,1.75243819]
[1751683310267,0.0056105,108090.0,108080.0,1.76925306]
[1751683311854,0.0056105,108090.0,108080.0,1.20839648]
[1751683311984,0.0056105,108090.0,108080.0,1.76925306]
[1751683312408,0.0056105,108090.0,108080.0,1.78495306]
[1751683314116,0.0056105,108090.0,108080.0,1.76925306]
[1751683321011,0.0056105,108090.0,108080.0,1.78435306]
[1751683322348,0.0056105,108090.0,108080.0,1.76925306]
[1751683328864,0.0056105,108090.0,108080.0,1.73683819]
[1751683344698,0.0056105,108090.0,108080.0,1.4564099]
[1751683346960,0.0056105,108090.0,108080.0,1.2221699]
[1751683347206,0.0056105,108090.0,108080.0,1.4558499]
[1751683352104,0.0056105,108090.0,108080.0,1.73627819]
[1751683352579,0.0056105,108090.0,108080.0,1.4558499]
[1751683353000,0.0056105,108090.0,108080.0,1.2221699]
[1751683353244,0.0056105,108090.0,108080.0,1.4558099]
[1751683353692,0.0056105,108090.0,108080.0,1.82767512]
[1751683353889,0.0056105,108090.0,108080.0,1.87311597]
[1751683361767,0.0056105,108090.0,108080.0,1.78167904]
[1751683366606,0.0056105,108090.0,108080.0,1.22082246]
[1751683366805,0.0056105,108090.0,108080.0,1.78167904]
[1751683368167,0.0056105,108090.0,108080.0,1.22082246]
[1751683368566,0.0056105,108090.0,108080.0,1.78167904]
[1751683369852,0.0056105,108090.0,108080.0,1.87311597]
[1751683371128,0.00608319,108090.0,108080.0,1.87311597]
[1751683381621,0.00608319,108090.0,108080.0,1.78167904]
[1751683391140,0.00608319,108090.0,108080.0,1.76637904]
[1751683403310,0.04167549,108100.0,108090.0,0.2127846]
[1751683403311,0.04031868,108100.0,108090.0,0.2127846]
[1751683403451,0.04031868,108100.0,108090.0,0.77220982]
[1751683404613,0.04031868,108100.0,108090.0,0.77420982]
[1751683404959,0.04031868,108100.0,108090.0,1.06571021]
[1751683407734,0.04031868,108100.0,108090.0,1.07597154]
[1751683408280,0.04031868,108100.0,108090.0,1.06671021]
[1751683411747,0.04031868,108100.0,108090.0,0.78628192]
[1751683414907,0.04031868,108100.0,108090.0,1.06671021]
[1751683416836,0.02487549,108100.0,108090.0,1.06671021]
[1751683418612,0.02487549,108100.0,108090.0,0.78628192]
[1751683421012,0.00867549,108100.0,108090.0,0.78628192]
[1751683422778,0.00867549,108100.0,108090.0,0.83200192]
[1751683439418,0.37732212,108110.0,108100.0,0.55276517]
[1751683439652,0.38613942,108110.0,108100.0,1.12310257]
[1751683439859,0.40349052,108110.0,108100.0,1.13235275]
[1751683440251,0.40349052,108110.0,108100.0,1.12310257]
[1751683440473,0.39481497,108110.0,108100.0,1.12310257]
[1751683440668,0.37746387,108110.0,108100.0,1.12310257]
[1751683440811,0.39481498,108110.0,108100.0,1.12310257]
[1751683441016,0.37746387,108110.0,108100.0,1.12310257]
[1751683441476,0.40349053,108110.0,108100.0,1.12310257]
[1751683441712,0.40349053,108110.0,108100.0,1.13335275]
[1751683441830,0.39481498,108110.0,108100.0,1.13335275]
[1751683442031,0.40349052,108110.0,108100.0,1.12410257]
[1751683443777,0.40349052,108110.0,108100.0,1.13335275]
[1751683443983,0.40349052,108110.0,108100.0,1.14260284]
[1751683444195,0.40348995,108110.0,108100.0,1.14260284]
[1751683444409,0.39424037,108110.0,108100.0,1.14260284]
[1751683445267,0.40348995,108110.0,108100.0,1.14260284]
[1751683446360,0.40348995,108110.0,108100.0,1.13335275]
[1751683446942,0.40349001,108110.0,108100.0,1.12410257]
[1751683447136,0.40349001,108110.0,108100.0,1.13335275]
[1751683448232,0.40349001,108110.0,108100.0,1.12410257]
[1751683448436,0.40349001,108110.0,108100.0,1.13335275]
[1751683449050,0.40349001,108110.0,108100.0,1.12410257]
[1751683449564,0.40349001,108110.0,108100.0,1.13335275]
[1751683450112,0.08171214,108110.0,108100.0,1.14260284]
[1751683450307,0.3436417,108110.0,108100.0,1.14260284]
[1751683451952,0.35289085,108110.0,108100.0,1.14260284]
[1751683452861,0.35289076,108110.0,108100.0,1.14260284]
[1751683454972,0.05396418,108110.0,108100.0,1.15735441]
[1751683455098,0.34364162,108110.0,108100.0,1.14260284]
[1751683455304,0.34364153,108110.0,108100.0,1.14260284]
[1751683456119,0.35289076,108110.0,108100.0,1.14260284]
[1751683457488,0.34364153,108110.0,108100.0,1.14260284]
[1751683457639,0.35289068,108110.0,108100.0,1.14260284]
[1751683459078,0.07246239,108110.0,108100.0,1.14260284]
[1751683459327,0.35289068,108110.0,108100.0,1.14260284]
[1751683459968,0.34364153,108110.0,108100.0,1.14260284]
[1751683460170,0.34364162,108110.0,108100.0,1.23403977]
[1751683460574,0.34364153,108110.0,108100.0,1.23403977]
[1751683460998,0.35289076,108110.0,108100.0,1.23403977]
[1751683461209,0.34364153,108110.0,108100.0,1.23403977]
[1751683461408,0.35288971,108110.0,108100.0,1.14260284]
[1751683461733,0.34364048,108110.0,108100.0,1.14260284]
[1751683462749,0.35288971,108110.0,108100.0,1.14260284]
[1751683463364,0.36213912,108110.0,108100.0,1.14260284]
[1751683464458,0.36213695,108110.0,108100.0,1.14260284]
[1751683467182,0.3621369,108110.0,108100.0,1.14260284]
[1751683468752,0.35288749,108110.0,108100.0,1.14260284]
[1751683468965,0.3621369,108110.0,108100.0,1.14260284]
[1751683475606,0.38063605,108110.0,108100.0,1.12394266]
[1751683475782,0.38063605,108110.0,108100.0,1.13319284]
[1751683476753,0.38063605,108110.0,108100.0,1.12394266]
[1751683477507,0.38063605,108110.0,108100.0,1.13319284]
[1751683477703,0.38063597,108110.0,108100.0,1.13319284]
[1751683477901,0.38063674,108110.0,108100.0,1.12394283]
[1751683478105,0.38063666,108110.0,108100.0,1.12394283]
[1751683478303,0.37138691,108110.0,108100.0,1.13319301]
[1751683478669,0.37138691,108110.0,108100.0,1.13319309]
[1751683478871,0.37138639,108110.0,108100.0,1.13319309]
[1751683479069,0.38063614,108110.0,108100.0,1.13319309]
[1751683479481,0.37138639,108110.0,108100.0,1.13319309]
[1751683479731,0.05396039,108110.0,108100.0,0.97497972]
[1751683479942,0.01440306,108110.0,108100.0,1.32859771]
[1751683480353,0.00572875,108110.0,108100.0,1.32859771]
[1751683480569,0.00572875,108110.0,108100.0,1.91406724]
[1751683481461,0.00572875,108110.0,108100.0,1.91506724]
[1751683482664,0.00572875,108110.0,108100.0,1.94307917]
[1751683482870,0.00572875,108110.0,108100.0,1.94607917]
[1751683483189,0.00572875,108110.0,108100.0,1.94507917]
[1751683483346,0.00572875,108110.0,108100.0,1.94807917]
[1751683484515,0.00572875,108110.0,108100.0,1.87488947]
[1751683487719,0.00572875,108110.0,108100.0,1.90268947]
[1751683501403,0.00572875,108110.0,108100.0,2.00268947]
[1751683509832,0.00572875,108110.0,108100.0,2.10268947]
[1751683524668,0.00572875,108110.0,108100.0,2.14820947]
[1751683528285,0.0034,108120.0,108110.0,0.59898608]
[1751683528490,0.0034,108120.0,108110.0,1.52971652]
[1751683528934,0.0056795,108130.0,108120.0,0.59896641]
[1751683529134,0.0056795,108130.0,108120.0,1.43825992]
[1751683530912,0.0056795,108130.0,108120.0,1.45205392]
[1751683532210,0.0037195,108130.0,108120.0,1.74755431]
[1751683532438,0.0037195,108130.0,108120.0,1.77220839]
[1751683535185,0.0037195,108130.0,108120.0,1.77720839]
[1751683535609,0.0037195,108130.0,108120.0,1.75255431]
[1751683536852,0.31674779,108130.0,108120.0,0.97299773]
[1751683537062,0.31674779,108130.0,108120.0,1.17710288]
[1751683537734,0.31674779,108130.0,108120.0,0.94466288]
[1751683537947,0.31674779,108130.0,108120.0,1.17710288]
[1751683538181,0.31674779,108130.0,108120.0,1.17310288]
[1751683538390,0.31674779,108130.0,108120.0,0.94366288]
[1751683538597,0.31674779,108130.0,108120.0,1.17610288]
[1751683539342,0.31674779,108130.0,108120.0,0.94366288]
[1751683539549,0.0363195,108130.0,108120.0,1.17610288]
[1751683539937,0.0363195,108130.0,108120.0,1.17110288]
[1751683541322,0.0363195,108130.0,108120.0,1.26553981]
[1751683541839,0.0363195,108130.0,108120.0,1.6459681]
[1751683542384,0.0363195,108130.0,108120.0,1.55453117]
[1751683543118,0.0363195,108130.0,108120.0,1.27410288]
[1751683547303,0.0363195,108130.0,108120.0,1.55453117]
[1751683548916,0.31674779,108130.0,108120.0,1.27406288]
[1751683551705,0.31674779,108130.0,108120.0,1.37406288]
[1751683552122,0.0363195,108130.0,108120.0,1.37406288]
[1751683557739,0.31674779,108130.0,108120.0,1.37406288]
[1751683560725,0.0363195,108130.0,108120.0,1.37406288]
[1751683560930,0.31674779,108130.0,108120.0,1.37406288]
[1751683566472,0.32542256,108130.0,108120.0,1.37406288]
[1751683567246,0.04499427,108130.0,108120.0,1.37406288]
[1751683567455,0.32542256,108130.0,108120.0,1.37406288]
[1751683568060,0.04499427,108130.0,108120.0,1.37406288]
[1751683568712,0.0198195,108130.0,108120.0,1.37406288]
[1751683570191,0.0037195,108130.0,108120.0,1.37406288]
[1751683572210,0.01239505,108130.0,108120.0,1.37406288]
[1751683574115,0.0532424,108130.0,108120.0,1.37394288]
[1751683574337,0.32442334,108130.0,108120.0,1.37394288]
[1751683574695,0.33367069,108130.0,108120.0,1.37394288]
[1751683575887,0.32442334,108130.0,108120.0,1.37394288]
[1751683576081,0.30842334,108130.0,108120.0,1.37394288]
[1751683576987,0.29282334,108130.0,108120.0,1.37394288]
[1751683577196,0.29282566,108130.0,108120.0,1.37394288]
[1751683580137,0.01239737,108130.0,108120.0,1.96749946]
[1751683580542,0.01239737,108130.0,108120.0,1.68707117]
[1751683582856,0.01239996,108130.0,108120.0,1.68707117]
[1751683583681,0.01239996,108130.0,108120.0,1.65437117]
[1751683586593,0.0037195,108130.0,108120.0,1.96609946]
[1751683586794,0.01239967,108130.0,108120.0,2.05753639]
[1751683587793,0.01239967,108130.0,108120.0,1.96609946]
[1751683591390,0.0037195,108130.0,108120.0,1.96609946]
[1751683591627,0.01239786,108130.0,108120.0,1.96609946]
[1751683595565,0.01239786,108130.0,108120.0,1.68567117]
[1751683597091,0.01239786,108130.0,108120.0,1.96609946]
[1751683597329,0.01239786,108130.0,108120.0,2.05753639]
[1751683597330,0.0037195,108130.0,108120.0,2.05753639]
[1751683599315,0.0037195,108130.0,108120.0,1.96493946]
[1751683600086,0.0037195,108130.0,108120.0,1.97948031]
[1751683614757,0.0037195,108130.0,108120.0,1.97348031]
[1751683615169,0.0037195,108130.0,108120.0,1.98248031]
[1751683625368,0.0004,108140.0,108130.0,0.21270588]
[1751683625581,0.0004,108140.0,108130.0,1.53986927]
[1751683627226,0.0004,108140.0,108130.0,1.54286927]
[1751683628608,0.0004,108140.0,108130.0,1.83243457]
[1751683631012,0.0004,108140.0,108130.0,1.83543457]
[1751683632699,0.00512589,108150.0,108140.0,1.45188404]
[1751683632817,0.00525674,108150.0,108140.0,1.78146818]
[1751683634235,0.00525674,108150.0,108140.0,1.78246818]
[1751683634435,0.00525674,108150.0,108140.0,1.78446818]
[1751683634581,0.00525674,108150.0,108140.0,1.78346818]
[1751683634993,0.00525674,108150.0,108140.0,1.78446818]
[1751683635410,0.00525674,108150.0,108140.0,1.78746818]
[1751683644277,0.00525674,108150.0,108140.0,1.78446818]
[1751683644472,0.00525674,108150.0,108140.0,1.78846818]
[1751683644974,0.00525674,108150.0,108140.0,1.78546818]
[1751683645183,0.04454987,108170.0,108160.0,0.21264689]
[1751683645367,0.04454987,108170.0,108160.0,1.09600715]
[1751683645561,0.04454987,108170.0,108160.0,0.81557886]
[1751683645791,0.04454987,108170.0,108160.0,1.09600715]
[1751683646324,0.04454039,108170.0,108160.0,1.09600715]
[1751683646657,0.04454039,108170.0,108160.0,1.09800715]
[1751683647317,0.04454039,108170.0,108160.0,1.09900715]
[1751683647721,0.04454039,108170.0,108160.0,0.81857886]
[1751683648045,0.04454039,108170.0,108160.0,1.0652525]
[1751683649079,0.04453804,108170.0,108160.0,1.0652525]
[1751683651828,0.04453746,108170.0,108160.0,1.0652525]
[1751683653690,0.01433746,108170.0,108160.0,1.0652525]
[1751683656963,0.01433746,108170.0,108160.0,1.09252118]
[1751683662512,0.01433746,108170.0,108160.0,1.19252118]
[1751683663657,0.0056795,108170.0,108160.0,1.19252118]
[1751683663792,0.01434378,108170.0,108160.0,1.19252118]
[1751683666424,0.01434378,108170.0,108160.0,1.81294947]
[1751683666628,0.01434378,108170.0,108160.0,1.9043864]
[1751683666836,0.0056795,108170.0,108160.0,1.9043864]
[1751683669602,0.0056795,108170.0,108160.0,2.0043864]
[1751683670231,0.01434624,108170.0,108160.0,2.0043864]
[1751683670442,0.01434624,108170.0,108160.0,2.0368864]
[1751683671043,0.01434624,108170.0,108160.0,2.0206864]
[1751683671674,0.0056795,108170.0,108160.0,2.0368864]
[1751683671887,0.0056795,108170.0,108160.0,2.05142725]
[1751683672932,0.0056795,108170.0,108160.0,2.04942725]
[1751683673138,0.0056795,108170.0,108160.0,2.05242725]
[1751683673350,0.0056795,108170.0,108160.0,2.05542725]
[1751683679520,0.0056795,108170.0,108160.0,2.05142725]
[1751683679728,0.0056795,108170.0,108160.0,2.04842725]
[1751683679935,0.0056795,108170.0,108160.0,2.05342725]
[1751683680357,0.0056795,108170.0,108160.0,2.05842725]
[1751683680834,0.0056795,108170.0,108160.0,2.33885554]
[1751683681087,0.0056795,108170.0,108160.0,2.05842725]
[1751683681331,0.0056795,108170.0,108160.0,2.08621325]
[1751683682530,0.0056795,108170.0,108160.0,2.05842725]
[1751683684028,0.0056795,108170.0,108160.0,2.08621325]
[1751683685326,1e-08,108170.0,108160.0,2.36664154]
[1751683687542,0.07580001,108190.0,108180.0,0.55260757]
[1751683687899,0.07594142,108190.0,108180.0,1.49464624]
[1751683689041,0.07594142,108190.0,108180.0,1.49564624]
[1751683690144,0.07594142,108190.0,108180.0,1.49764624]
[1751683692010,0.07594142,108190.0,108180.0,1.79796907]
[1751683693173,0.07594142,108190.0,108180.0,1.23711249]
[1751683693400,0.07594142,108190.0,108180.0,1.79796907]
[1751683693767,0.07594142,108190.0,108180.0,1.74018391]
[1751683695911,0.07594142,108190.0,108180.0,1.75638391]
[1751683696111,0.07594142,108190.0,108180.0,1.74018391]
[1751683696772,0.07594142,108190.0,108180.0,1.75472476]
[1751683697479,0.07594142,108190.0,108180.0,1.77092476]
[1751683697713,0.07594142,108190.0,108180.0,1.87776169]
[1751683699059,0.07594142,108190.0,108180.0,1.86236169]
[1751683699315,0.07594142,108190.0,108180.0,1.87776169]
[1751683699829,0.07594142,108190.0,108180.0,1.86236169]
[1751683700616,0.07594142,108190.0,108180.0,1.77092476]
[1751683710131,0.07594142,108190.0,108180.0,1.21006818]
[1751683710308,0.07594142,108190.0,108180.0,1.77092476]
[1751683711341,0.07594142,108190.0,108180.0,1.75638391]
[1751683712170,0.07594142,108190.0,108180.0,1.75472476]
[1751683713934,0.07594142,108190.0,108180.0,1.19386818]
[1751683714149,0.07594142,108190.0,108180.0,1.75472476]
[1751683714954,0.07594142,108190.0,108180.0,1.7541552]
[1751683715173,0.07594142,108190.0,108180.0,1.75472476]
[1751683718869,0.07594142,108190.0,108180.0,1.77022476]
[1751683719535,0.07594142,108190.0,108180.0,1.87022476]
[1751683720561,0.07594142,108190.0,108180.0,1.85472476]
[1751683720761,0.07594142,108190.0,108180.0,1.96146169]
[1751683721703,0.07594142,108190.0,108180.0,1.97646169]
[1751683722929,0.07594142,108190.0,108180.0,1.97346169]
[1751683723156,0.07594142,108190.0,108180.0,1.97646169]
[1751683723354,0.07594142,108190.0,108180.0,1.98046169]
[1751683727121,0.07594142,108190.0,108180.0,2.08046169]
[1751683728246,0.07594142,108190.0,108180.0,1.51960511]
[1751683728424,0.07594142,108190.0,108180.0,2.08046169]
[1751683732946,1e-08,108190.0,108180.0,2.08046169]
[1751683735356,1e-08,108190.0,108180.0,2.06546169]
[1751683738203,1e-08,108190.0,108180.0,2.08206169]
[1751683752493,1e-08,108190.0,108180.0,2.07506169]
[1751683752699,1e-08,108190.0,108180.0,2.08006169]
[1751683752923,1e-08,108190.0,108180.0,2.08506169]
[1751683771072,0.0036795,108200.0,108190.0,0.8436883]
[1751683771288,0.0036795,108200.0,108190.0,1.48540073]
[1751683771289,0.00415077,108200.0,108190.0,1.48540073]
[1751683773072,0.00415077,108200.0,108190.0,1.49040073]
[1751683773370,0.00415077,108200.0,108190.0,1.49540073]
[1751683780190,1e-08,108200.0,108190.0,1.84901872]
[1751683781035,1e-08,108200.0,108190.0,1.86355957]
[1751683781258,1e-08,108200.0,108190.0,1.91355957]
[1751683781466,1e-08,108200.0,108190.0,1.93021157]
[1751683785484,1e-08,108200.0,108190.0,1.85702187]
[1751683785683,1e-08,108200.0,108190.0,2.35492187]
[1751683790013,1e-08,108200.0,108190.0,1.79406529]
[1751683790334,1e-08,108200.0,108190.0,1.60758529]
[1751683790580,1e-08,108200.0,108190.0,1.70601808]
[1751683790788,1e-08,108200.0,108190.0,1.96979437]
[1751683790998,1e-08,108200.0,108190.0,1.98559437]
[1751683791962,1e-08,108200.0,108190.0,2.00189437]
[1751683793184,1e-08,108200.0,108190.0,1.77009437]
[1751683793389,1e-08,108200.0,108190.0,2.00189437]
[1751683793591,1e-08,108200.0,108190.0,2.00193437]
[1751683795023,1e-08,108200.0,108190.0,1.75379437]
[1751683795350,1e-08,108200.0,108190.0,1.98563437]
[1751683795506,0.0339,108210.0,108200.0,0.85820949]
[1751683795704,0.03398706,108210.0,108200.0,1.46191471]
[1751683796078,0.03398706,108210.0,108200.0,1.23007471]
[1751683796279,0.03398706,108210.0,108200.0,1.46191471]
[1751683796485,0.03398706,108210.0,108200.0,1.18148642]
[1751683796689,0.03398706,108210.0,108200.0,1.46191471]
[1751683797106,0.03398706,108210.0,108200.0,1.46591471]
[1751683797314,0.03398706,108210.0,108200.0,1.46891471]
[1751683800044,0.00248706,108210.0,108200.0,1.46891471]
[1751683800708,0.00248706,108210.0,108200.0,1.18848642]
[1751683800920,0.03318706,108210.0,108200.0,0.95664642]
[1751683801128,0.03318706,108210.0,108200.0,1.18844642]
[1751683801129,0.31361535,108210.0,108200.0,1.18844642]
[1751683801458,0.03318706,108210.0,108200.0,1.18844642]
[1751683808869,0.03318706,108210.0,108200.0,1.46887471]
[1751683809416,0.00248706,108210.0,108200.0,1.56031164]
[1751683810704,0.00248706,108210.0,108200.0,1.87223993]
[1751683811824,0.00248706,108210.0,108200.0,1.84073993]
[1751683812233,0.00248706,108210.0,108200.0,1.85713993]
[1751683812435,0.00248706,108210.0,108200.0,1.87223993]
[1751683812681,0.00248706,108210.0,108200.0,1.31138335]
[1751683812855,0.00248706,108210.0,108200.0,1.87223993]
[1751683815943,0.00248706,108210.0,108200.0,1.59181164]
[1751683816144,0.00248706,108210.0,108200.0,1.50037471]
[1751683816552,0.00248706,108210.0,108200.0,1.21994642]
[1751683816759,0.00248706,108210.0,108200.0,1.50037471]
[1751683817207,0.00248706,108210.0,108200.0,0.97304642]
[1751683817435,0.31571535,108210.0,108200.0,1.18868642]
[1751683818299,0.31571535,108210.0,108200.0,1.18872642]
[1751683819761,0.31571535,108210.0,108200.0,0.94210557]
[1751683820291,0.31571535,108210.0,108200.0,1.17418557]
[1751683823147,0.03528706,108210.0,108200.0,1.17418557]
[1751683823350,0.31571535,108210.0,108200.0,1.17418557]
[1751683825576,0.31571535,108210.0,108200.0,1.17418557]
[1751683828313,0.00248706,108210.0,108200.0,1.54605079]
[1751683828445,0.00248706,108210.0,108200.0,1.56225079]
[1751683828652,0.00248706,108210.0,108200.0,1.57795079]
[1751683829058,0.00248706,108210.0,108200.0,1.2975225]
[1751683829270,0.00248706,108210.0,108200.0,1.54605079]
[1751683830086,0.00248706,108210.0,108200.0,1.56165079]
[1751683830304,0.00248706,108210.0,108200.0,1.2812225]
[1751683830459,0.00248706,108210.0,108200.0,1.56165079]
[1751683831112,0.00248706,108210.0,108200.0,1.47021386]
[1751683834288,0.00248706,108210.0,108200.0,1.45461386]
[1751683835079,0.00248706,108210.0,108200.0,1.47021386]
[1751683835881,0.00248706,108210.0,108200.0,1.48581386]
[1751683836958,0.00248706,108210.0,108200.0,1.48577386]
[1751683837741,0.00248706,108210.0,108200.0,1.57721079]
[1751683838538,0.00248706,108210.0,108200.0,1.59175164]
[1751683839999,0.00248706,108210.0,108200.0,1.50031471]
[1751683843925,0.00248706,108210.0,108200.0,1.21988642]
[1751683844140,0.00248706,108210.0,108200.0,1.50031471]
[1751683844335,0.00248706,108210.0,108200.0,1.48471471]
[1751683844545,0.00248706,108210.0,108200.0,1.49991471]
[1751683844749,0.00248706,108210.0,108200.0,1.59135164]
[1751683846528,0.00248706,108210.0,108200.0,1.57681079]
[1751683846932,0.00248706,108210.0,108200.0,1.59135164]
[1751683850134,0.00248706,108210.0,108200.0,1.57681079]
[1751683852148,0.00248706,108210.0,108200.0,1.59135164]
[1751683854477,0.00248706,108210.0,108200.0,1.57615164]
[1751683855231,0.00248706,108210.0,108200.0,1.48438687]
[1751683860560,0.00248706,108210.0,108200.0,1.58438687]
[1751683861135,0.00248706,108210.0,108200.0,1.39774687]
[1751683861310,0.00248706,108210.0,108200.0,1.58422687]
[1751683861710,0.00248706,108210.0,108200.0,1.28815858]
[1751683861711,0.31501535,108210.0,108200.0,1.28815858]
[1751683863675,0.28291535,108210.0,108200.0,1.28815858]
[1751683864025,0.00248706,108210.0,108200.0,1.28815858]
[1751683864243,0.28291535,108210.0,108200.0,1.28815858]
[1751683864882,0.00248706,108210.0,108200.0,1.28815858]
[1751683868565,0.00248706,108210.0,108200.0,1.56858687]
[1751683871124,0.00248706,108210.0,108200.0,1.66858687]
[1751683872550,0.00248706,108210.0,108200.0,1.43674687]
[1751683872770,0.00248706,108210.0,108200.0,1.66858687]
[1751683880638,0.00248706,108210.0,108200.0,1.38815858]
[1751683880831,0.00248706,108210.0,108200.0,1.66858687]
[1751683881329,0.00248706,108210.0,108200.0,1.38815858]
[1751683882618,0.00248706,108210.0,108200.0,1.66858687]
[1751683887479,0.00248706,108210.0,108200.0,1.38815858]
[1751683887690,0.00248706,108210.0,108200.0,1.66858687]
[1751683888322,0.00248706,108210.0,108200.0,1.38815858]
[1751683888528,0.00248706,108210.0,108200.0,1.66858687]
[1751683894938,0.00248706,108210.0,108200.0,1.66854687]
[1751683898083,0.00248706,108210.0,108200.0,1.38811858]
[1751683902298,0.00248706,108210.0,108200.0,1.70034687]
[1751683903764,0.00248706,108210.0,108200.0,1.66854687]
[1751683904168,0.00248706,108210.0,108200.0,1.38811858]
[1751683913184,0.00248706,108210.0,108200.0,1.66854687]
[1751683914946,0.00248706,108210.0,108200.0,1.65400602]
[1751683920763,0.00248706,108210.0,108200.0,1.66854687]
[1751683921187,0.00248706,108210.0,108200.0,1.38803858]
[1751683921834,0.28291535,108210.0,108200.0,1.38803858]
[1751683922701,0.00248706,108210.0,108200.0,1.38803858]
[1751683924250,0.28291535,108210.0,108200.0,1.38803858]
[1751683925388,0.00248706,108210.0,108200.0,1.38803858]
[1751683933322,0.00248706,108210.0,108200.0,1.66846687]
[1751683933577,0.00248706,108210.0,108200.0,2.0121605]
[1751683934733,0.00248706,108210.0,108200.0,1.97939516]
[1751683934935,0.00248706,108210.0,108200.0,2.00717016]
[1751683939888,0.00248706,108210.0,108200.0,1.455429]
[1751683940121,0.00248706,108210.0,108200.0,2.01628558]
[1751683940698,0.00248706,108210.0,108200.0,1.73585729]
[1751683942230,0.00248706,108210.0,108200.0,2.01628558]
[1751683942454,0.00248706,108210.0,108200.0,2.10772251]
[1751683942818,0.00248706,108210.0,108200.0,2.01628558]
[1751683951396,0.00248706,108210.0,108200.0,1.455429]
[1751683951561,0.00248706,108210.0,108200.0,2.01628558]
[1751683953278,0.00248706,108210.0,108200.0,1.455429]
[1751683953498,0.00248706,108210.0,108200.0,2.01628558]
[1751683954333,0.00248706,108210.0,108200.0,1.223709]
[1751683954507,0.00248706,108210.0,108200.0,1.455389]
[1751683954770,0.00248706,108210.0,108200.0,1.73581729]
[1751683957032,0.00248706,108210.0,108200.0,2.01624558]
[1751683957455,0.00248706,108210.0,108200.0,1.73581729]
[1751683963248,0.00248706,108210.0,108200.0,2.01624558]
[1751683964722,0.00248706,108210.0,108200.0,2.10768251]
[1751683967042,0.00248706,108210.0,108200.0,2.01624558]
[1751683979644,0.00248706,108210.0,108200.0,1.455389]
[1751683979843,0.00248706,108210.0,108200.0,2.01624558]
[1751683984139,0.00248706,108210.0,108200.0,1.455389]
[1751683984340,0.00248706,108210.0,108200.0,2.01624558]
[1751683984584,0.00248706,108210.0,108200.0,1.70555729]
[1751683985187,0.00248706,108210.0,108200.0,1.47363729]
[1751683985408,0.00248706,108210.0,108200.0,1.70555729]
[1751683986029,0.00248706,108210.0,108200.0,1.47363729]
[1751683986253,0.00248706,108210.0,108200.0,1.70555729]
[1751683986679,0.00248706,108210.0,108200.0,1.51891729]
[1751683986889,0.00248706,108210.0,108200.0,1.70555729]
[1751683987790,0.00248706,108210.0,108200.0,1.425129]
[1751683987976,0.00248706,108210.0,108200.0,1.70555729]
[1751683989201,0.00248706,108210.0,108200.0,1.47363729]
[1751683989403,0.00248706,108210.0,108200.0,1.70551729]
[1751683993072,0.00248706,108210.0,108200.0,1.80551729]
[1751683995733,0.00248706,108210.0,108200.0,1.57363729]
[1751683995937,0.00248706,108210.0,108200.0,1.80543729]
[1751683998853,0.00248706,108210.0,108200.0,1.525009]
[1751683999093,0.00248706,108210.0,108200.0,1.80543729]
[1751684000120,0.03398706,108210.0,108200.0,1.497234]
[1751684000535,0.03398706,108210.0,108200.0,1.77766229]
[1751684003323,0.06622801,108210.0,108200.0,1.497234]
[1751684003723,0.03398706,108210.0,108200.0,1.497234]
[1751684004386,0.03398706,108210.0,108200.0,1.77766229]
[1751684009556,0.03398706,108210.0,108200.0,1.497234]
[1751684009660,0.03398706,108210.0,108200.0,1.77766229]
[1751684011166,0.00248706,108210.0,108200.0,1.77766229]
[1751684011319,0.00248706,108210.0,108200.0,1.86909922]
[1751684011523,0.00248706,108210.0,108200.0,1.77766229]
[1751684019826,0.00248706,108210.0,108200.0,2.08879058]
[1751684019948,1e-08,108210.0,108200.0,2.08879058]
[1751684020533,0.01666633,108220.0,108210.0,0.88888984]
[1751684020690,0.01671341,108220.0,108210.0,1.44759506]
[1751684021007,0.00804118,108220.0,108210.0,1.44759506]
[1751684021576,0.00804118,108220.0,108210.0,1.45059506]
[1751684022162,0.00804118,108220.0,108210.0,1.45459506]
[1751684030221,0.00804118,108220.0,108210.0,1.17416677]
[1751684030451,0.00804118,108220.0,108210.0,0.95662677]
[1751684030629,0.00804118,108220.0,108210.0,1.18870677]
[1751684031123,0.00804118,108220.0,108210.0,1.46913506]
[1751684032072,0.00804118,108220.0,108210.0,1.23705506]
[1751684032272,0.00804118,108220.0,108210.0,1.46933506]
[1751684045955,0.00304118,108220.0,108210.0,1.46933506]
[1751684046138,0.00304118,108220.0,108210.0,1.56077199]
[1751684046331,0.00304118,108220.0,108210.0,1.46933506]
[1751684050262,0.01171159,108220.0,108210.0,1.46933506]
[1751684052513,0.00304118,108220.0,108210.0,1.46933506]
[1751684052716,0.0117115,108220.0,108210.0,1.46933506]